bitfinex/quotes_SOLUSD_20250811
["timestamp","ask_amount","ask_price","bid_price","bid_amount"]
[1754951138721,9.30661126,173.81,173.8,1e-08]
[1754951138903,48.89840006,173.81,173.8,1e-08]
[1754951139514,54.65180895,173.81,173.8,1e-08]
[1754951139921,26.0,173.77,173.74,0.06]
[1754951140626,26.0,173.77,173.74,1e-08]
[1754951140627,49.50117456,173.76,173.74,1e-08]
[1754951141105,67.72,173.76,173.74,1e-08]
[1754951141432,5.75539568,173.75,173.74,1e-08]
[1754951146414,23.04995068,173.75,173.74,1e-08]
[1754951147229,27.60969172,173.75,173.74,1e-08]
[1754951147920,23.04995068,173.75,173.74,1e-08]
[1754951150236,15.10621557,173.74,173.72,1e-08]
[1754951150407,26.0,173.7,173.69,168.94509832]
[1754951150809,31.75705238,173.7,173.69,168.94509832]
[1754951151011,73.57705238,173.7,173.69,168.94509832]
[1754951151212,73.57705238,173.7,173.69,105.54886859]
[1754951151632,74.15705238,173.7,173.69,43.86396977]
[1754951151944,74.15705238,173.7,173.69,1e-08]
[1754951152237,90.87958738,173.7,173.69,1e-08]
[1754951152445,23.05958738,173.7,173.69,1e-08]
[1754951152625,5.75705238,173.7,173.69,0.67000001]
[1754951152818,5.75672097,173.71,173.69,1e-08]
[1754951153018,37.51618497,173.71,173.69,1e-08]
[1754951153217,49.2267022,173.76,173.7,0.67]
[1754951153449,26.0,173.73,173.7,0.67]
[1754951153735,0.03,173.75,173.7,0.67]
[1754951153913,0.03,173.75,173.71,0.67]
[1754951154238,26.0,173.73,173.71,0.67]
[1754951154427,26.0,173.72,173.71,0.67]
[1754951154623,26.0,173.72,173.69,0.73000001]
[1754951154828,5.75672097,173.71,173.7,0.67]
[1754951155026,5.7564248,173.72,173.71,0.67]
[1754951155738,5.75572694,173.74,173.71,0.67]
[1754951156120,0.03,173.75,173.71,0.67]
[1754951156348,0.03,173.75,173.71,42.47]
[1754951156720,0.03,173.75,173.72,0.67]
[1754951156939,5.78542058,173.75,173.72,0.67]
[1754951157133,5.78542058,173.75,173.73,0.67]
[1754951157344,5.78542058,173.75,173.74,0.67]
[1754951157521,31.78542058,173.75,173.74,0.67]
[1754951157848,0.03,173.75,173.74,0.67]
[1754951158643,0.03,173.75,173.7,0.67]
[1754951158644,26.0,173.73,173.7,0.67]
[1754951159029,5.75638959,173.72,173.7,0.67]
[1754951159241,5.75638959,173.72,173.71,0.67]
[1754951159760,5.75638959,173.72,173.69,0.73000001]
[1754951159925,5.75638959,173.72,173.69,0.06000001]
[1754951160125,5.75638959,173.72,173.7,0.67]
[1754951160327,5.75638959,173.72,173.69,0.06000001]
[1754951160640,0.5,173.71,173.69,0.73000001]
[1754951161328,5.75705238,173.7,173.69,0.73000001]
[1754951161737,5.75705238,173.7,173.69,0.06000001]
[1754951163928,23.55635467,173.71,173.69,0.06000001]
[1754951164126,6.25681367,173.71,173.69,0.73000001]
[1754951164336,5.75681367,173.71,173.69,0.73000001]
[1754951164539,5.75681367,173.71,173.69,0.06000001]
[1754951165568,26.0,173.7,173.69,0.06000001]
[1754951166554,26.0,173.7,173.69,0.73000001]
[1754951166758,26.0,173.71,173.69,0.73000001]
[1754951166947,26.0,173.71,173.7,0.67]
[1754951167943,0.03,173.75,173.7,0.67]
[1754951168168,0.03,173.75,173.7,48.20683536]
[1754951168344,0.03,173.75,173.71,0.67]
[1754951168544,5.7854591,173.75,173.71,0.67]
[1754951169175,0.03,173.75,173.71,0.67]
[1754951170279,0.03,173.75,173.72,0.67]
[1754951170641,0.03,173.75,173.73,0.67]
[1754951171078,0.5,173.74,173.73,0.67]
[1754951171646,6.25572694,173.74,173.73,0.67]
[1754951171846,6.25572694,173.74,173.7,0.67]
[1754951172076,6.25572694,173.74,173.71,0.67]
[1754951172575,5.75572694,173.74,173.69,0.06000001]
[1754951172870,5.75572694,173.74,173.7,0.67]
[1754951173070,5.75572694,173.74,173.71,0.67]
[1754951173448,5.75572694,173.74,173.69,0.73000001]
[1754951173645,5.75572694,173.74,173.7,0.67]
[1754951173873,5.75572694,173.74,173.69,0.06000001]
[1754951174166,5.75572694,173.74,173.71,0.67]
[1754951174372,5.75572694,173.74,173.72,0.67]
[1754951174961,5.75572694,173.74,173.7,0.67]
[1754951175570,5.75572694,173.74,173.71,0.67]
[1754951177669,5.75638959,173.72,173.71,0.67]
[1754951178076,35.75614107,173.73,173.71,0.67]
[1754951178277,35.75614107,173.73,173.71,5.67]
[1754951178757,30.0,173.72,173.71,5.67]
[1754951180277,5.75572891,173.74,173.71,5.67]
[1754951180476,5.75572891,173.74,173.72,0.67]
[1754951180669,30.0,173.73,173.72,0.67]
[1754951181179,5.78561515,173.75,173.72,0.67]
[1754951181578,6.25588193,173.74,173.72,0.67]
[1754951182180,5.75588193,173.74,173.71,5.0]
[1754951182483,5.75588193,173.74,173.71,5.67]
[1754951183461,5.75588193,173.74,173.71,5.0]
[1754951183676,0.03,173.75,173.71,5.0]
[1754951183855,0.61,173.75,173.71,5.0]
[1754951184373,30.0,173.72,173.71,5.0]
[1754951184984,30.0,173.72,173.71,5.67]
[1754951185280,30.0,173.72,173.71,11.42672097]
[1754951185667,0.03,173.75,173.71,11.42672097]
[1754951185872,0.03,173.75,173.72,0.67]
[1754951186184,30.0,173.73,173.72,42.27]
[1754951186991,0.03,173.75,173.72,42.27]
[1754951187197,0.03,173.75,173.73,0.67]
[1754951187561,0.03,173.75,173.73,6.09903787]
[1754951187756,0.03,173.75,173.74,11.18476481]
[1754951187985,0.03,173.75,173.74,11.85476481]
[1754951188193,0.03,173.75,173.74,11.18476481]
[1754951188389,0.03,173.75,173.74,11.85476481]
[1754951188580,0.03,173.77,173.74,44.81655307]
[1754951188887,0.03,173.77,173.76,20.53525344]
[1754951189089,0.03,173.77,173.76,62.69075988]
[1754951189391,1e-08,173.77,173.76,63.36075988]
[1754951189568,1e-08,173.79,173.77,15.10621557]
[1754951189897,1e-08,173.79,173.78,11.75888019]
[1754951190099,1e-08,173.79,173.78,12.42888019]
[1754951190559,1e-08,173.79,173.78,27.53509576]
[1754951190761,1e-08,173.8,173.79,15.10621557]
[1754951190987,1e-08,173.8,173.79,101.36201643]
[1754951191464,1e-08,173.8,173.79,83.30781729]
[1754951191961,0.03,173.91,173.83,41.10621557]
[1754951192167,0.03,173.91,173.85,15.10621557]
[1754951192597,0.03,173.91,173.88,7.94580086]
[1754951192784,0.03,173.91,173.89,41.66]
[1754951192967,0.03,173.91,173.89,42.33]
[1754951193295,0.03,173.91,173.9,0.67]
[1754951193796,0.03,173.91,173.9,14.36623214]
[1754951194001,0.03,173.91,173.9,30.04749083]
[1754951195364,0.03,173.91,173.9,30.04749083]
[1754951195775,0.2,173.92,173.9,30.04749083]
[1754951195984,1e-08,173.92,173.91,31.66781729]
[1754951196977,1e-08,173.93,173.91,31.66781729]
[1754951197190,1e-08,174.16,173.94,33.39833202]
[1754951197362,1e-08,174.16,174.12,7.94580086]
[1754951197566,1e-08,174.16,174.1,15.10621557]
[1754951197776,1e-08,174.16,174.09,7.94580086]
[1754951197777,1e-08,174.16,174.11,42.56]
[1754951198090,0.61,174.15,174.11,42.56]
[1754951198291,0.61,174.14,174.11,42.56]
[1754951198785,1e-08,174.16,174.11,42.56]
[1754951199199,0.61,174.15,174.11,42.56]
[1754951200167,6.35225478,174.15,174.11,42.56]
[1754951200487,0.61,174.15,174.11,42.56]
[1754951201602,0.61,174.14,174.11,42.56]
[1754951201897,6.35283581,174.13,174.02,15.77621557]
[1754951202098,0.61,174.12,174.03,42.46]
[1754951202320,32.35246831,174.15,174.05,7.94580086]
[1754951202598,32.35246831,174.15,174.08,7.94580086]
[1754951202802,32.35246831,174.15,174.09,42.5]
[1754951203397,0.61,174.14,174.09,42.5]
[1754951203579,26.0,174.12,174.09,42.5]
[1754951203789,5.74349549,174.11,174.09,42.5]
[1754951203984,6.35349549,174.11,174.09,42.5]
[1754951204189,0.61,174.1,174.06,42.48]
[1754951205092,5.74349549,174.11,174.06,42.48]
[1754951205277,26.0,174.13,174.06,42.48]
[1754951205477,31.74284993,174.13,174.07,0.67]
[1754951205796,31.74284993,174.13,174.06,42.48]
[1754951206891,32.35284993,174.13,174.06,42.48]
[1754951207269,0.61,174.12,174.06,42.48]
[1754951207471,0.61,174.12,174.02,0.67]
[1754951207670,0.61,174.12,174.0,26.0]
[1754951207671,0.61,174.12,174.03,42.42]
[1754951207883,15.10621557,174.07,173.92,0.67]
[1754951208097,26.0,174.03,173.92,0.67]
[1754951208279,0.61,174.02,173.92,0.67]
[1754951208479,26.0,173.98,173.89,43.25]
[1754951208792,0.61,173.97,173.89,43.25]
[1754951209869,5.74844791,173.96,173.89,43.25]
[1754951210901,26.0,173.99,173.9,0.71]
[1754951211394,26.0,173.98,173.9,0.71]
[1754951211785,31.74800016,173.98,173.9,0.71]
[1754951212298,0.61,174.01,173.91,15.10621557]
[1754951212499,26.61,174.01,173.92,0.71]
[1754951213300,0.61,174.01,173.92,0.71]
[1754951213597,26.61,174.01,173.92,0.71]
[1754951213784,32.357099,174.01,173.92,0.71]
[1754951214182,32.357099,174.01,173.92,6.45976158]
[1754951214379,26.0,173.99,173.93,15.81621557]
[1754951214584,5.7464968,174.02,173.94,43.21]
[1754951214797,26.0,174.03,173.95,15.81621557]
[1754951215004,43.17,174.06,173.96,0.71]
[1754951215202,0.61,174.06,173.96,0.71]
[1754951215380,0.61,174.06,173.97,15.10621557]
[1754951215586,0.61,174.08,173.98,0.71]
[1754951215810,5.74442135,174.09,173.93,0.71]
[1754951215811,26.0,174.03,173.93,0.71]
[1754951216100,0.61,174.02,173.92,42.52]
[1754951217600,0.61,174.02,173.91,0.71]
[1754951217797,20.11378656,174.01,173.91,43.21]
[1754951217998,0.61,174.0,173.91,43.21]
[1754951218877,26.0,173.99,173.91,42.5]
[1754951219081,26.0,173.97,173.91,42.5]
[1754951219305,0.61,173.96,173.91,42.5]
[1754951219512,0.61,173.95,173.91,42.5]
[1754951219817,31.74943942,173.93,173.88,0.77]
[1754951220297,26.0,173.9,173.88,0.06]
[1754951220500,0.61,173.92,173.88,0.06]
[1754951221089,0.61,173.91,173.88,0.06]
[1754951221506,0.61,173.9,173.88,0.06]
[1754951221807,5.75076197,173.89,173.88,0.06]
[1754951224406,6.36076197,173.89,173.88,0.06]
[1754951224911,26.0,173.87,173.86,0.06]
[1754951225509,26.61,173.87,173.86,0.06]
[1754951225681,26.0,173.86,173.78,0.06]
[1754951225885,5.75241601,173.84,173.78,0.06]
[1754951226086,20.13345604,173.84,173.78,0.06]
[1754951227796,5.75373993,173.8,173.78,0.06]
[1754951229291,5.75373993,173.8,173.78,0.77]
[1754951231806,5.75373993,173.8,173.78,0.06]
[1754951233012,31.75345234,173.81,173.79,0.71]
[1754951233199,31.75345234,173.81,173.8,0.71]
[1754951233420,31.75345234,173.81,173.78,0.06]
[1754951235113,0.61,173.8,173.78,0.06]
[1754951235492,0.61,173.79,173.78,0.06]
[1754951236417,32.364071,173.79,173.78,0.06]
[1754951236725,32.364071,173.79,173.74,0.06]
[1754951236908,0.61,173.78,173.74,0.06]
[1754951238324,0.61,173.77,173.74,0.06]
[1754951238622,26.0,173.75,173.74,0.06]
[1754951239003,26.61,173.75,173.74,0.06]
[1754951239204,26.61,173.75,173.74,1e-08]
[1754951240099,15.71621557,173.75,173.74,1e-08]
[1754951240322,26.0,173.72,173.71,1e-08]
[1754951240629,26.0,173.72,173.69,0.06000001]
[1754951240630,5.75705238,173.7,173.69,1e-08]
[1754951242330,31.75705238,173.7,173.69,1e-08]
[1754951244329,26.0,173.7,173.69,1e-08]
[1754951244508,5.75675591,173.71,173.69,0.70000001]
[1754951244824,5.75675591,173.71,173.69,1e-08]
[1754951245421,5.75617013,173.73,173.69,1e-08]
[1754951245624,5.75617013,173.73,173.7,0.7]
[1754951245811,26.0,173.72,173.7,0.7]
[1754951246409,26.0,173.72,173.69,1e-08]
[1754951246609,0.61,173.71,173.69,1e-08]
[1754951247203,5.75705238,173.7,173.69,1e-08]
[1754951247706,6.36705238,173.7,173.69,1e-08]
[1754951249215,6.36705238,173.7,173.68,1e-08]
[1754951249216,31.75738384,173.69,173.68,1e-08]
[1754951249531,32.36738384,173.69,173.68,1e-08]
[1754951250434,31.75738384,173.69,173.68,1e-08]
[1754951250814,5.75738384,173.69,173.68,1e-08]
[1754951251221,6.36738384,173.69,173.68,1e-08]
[1754951251714,21.47359941,173.69,173.68,1e-08]
[1754951253209,47.47359941,173.69,173.68,1e-08]
[1754951253407,5.75738384,173.69,173.68,1e-08]
[1754951253833,6.36738384,173.69,173.68,1e-08]
[1754951254724,26.0,173.67,173.65,0.06]
[1754951254918,5.75837844,173.66,173.65,0.06]
[1754951257146,5.75837844,173.66,173.65,0.76]
[1754951257147,31.75837844,173.66,173.65,0.76]
[1754951257515,56.0,173.66,173.65,0.76]
[1754951259420,30.0,173.66,173.65,0.76]
[1754951259636,5.75705238,173.7,173.65,0.76]
[1754951259937,26.0,173.67,173.65,0.76]
[1754951261131,31.75835865,173.67,173.65,0.76]
[1754951261638,31.75835865,173.67,173.65,0.06]
[1754951261819,0.03,173.7,173.66,0.7]
[1754951262211,26.03,173.7,173.66,0.7]
[1754951262416,0.03,173.7,173.66,0.7]
[1754951262617,2.30634,173.76,173.66,0.7]
[1754951262819,0.03,173.8,173.68,7.94580086]
[1754951263034,5.818483,173.77,173.69,0.7]
[1754951263225,11.57323375,173.77,173.69,6.45728551]
[1754951263437,11.57323375,173.77,173.7,0.7]
[1754951263843,11.57323375,173.77,173.65,5.81867002]
[1754951264023,11.57323375,173.77,173.69,0.7]
[1754951264024,12.28323375,173.77,173.69,0.7]
[1754951264226,2.09751819,173.76,173.69,0.7]
[1754951264726,12.28323375,173.77,173.69,0.7]
[1754951264727,26.0,173.74,173.69,0.7]
[1754951265231,26.0,173.74,173.69,6.45716928]
[1754951265544,0.71,173.79,173.69,6.45716928]
[1754951265545,5.75407977,173.79,173.7,0.7]
[1754951265744,26.0,173.76,173.7,0.7]
[1754951265935,15.032646,173.79,173.7,8.64580086]
[1754951266140,26.0,173.78,173.71,8.64580086]
[1754951266338,26.0,173.78,173.72,0.7]
[1754951267148,26.0,173.78,173.73,5.75605825]
[1754951267444,31.75457413,173.78,173.74,0.7]
[1754951267747,26.0,173.78,173.74,0.7]
[1754951268143,26.0,173.78,173.75,0.7]
[1754951269335,26.0,173.78,173.72,5.75610163]
[1754951269540,26.0,173.78,173.75,0.65]
[1754951270329,26.03,173.8,173.76,0.65]
[1754951270649,0.03,173.8,173.76,0.65]
[1754951271461,0.03,173.8,173.73,15.10621557]
[1754951271462,0.03,173.8,173.77,0.65]
[1754951272063,0.03,173.8,173.78,0.65]
[1754951272361,0.03,173.8,173.75,0.65]
[1754951272654,0.03,173.8,173.76,0.65]
[1754951273327,0.03,173.8,173.76,6.40476084]
[1754951273530,0.03,173.8,173.77,7.94580086]
[1754951273853,0.03,173.8,173.77,0.65]
[1754951274062,0.03,173.8,173.74,5.75565379]
[1754951274258,0.03,173.8,173.76,0.65]
[1754951274432,0.7,173.8,173.74,0.65]
[1754951275346,6.45391146,173.8,173.74,0.65]
[1754951275848,0.67,173.79,173.7,0.65]
[1754951277340,5.75440211,173.78,173.7,0.65]
[1754951277956,5.75440211,173.78,173.7,6.40684239]
[1754951278156,5.75440211,173.78,173.71,0.65]
[1754951278359,0.67,173.79,173.71,0.65]
[1754951279453,6.42408765,173.79,173.71,0.65]
[1754951279649,5.75408765,173.79,173.71,0.65]
[1754951279857,0.67,173.78,173.71,0.65]
[1754951280250,15.05389,173.78,173.71,0.65]
[1754951281363,32.42464341,173.78,173.71,0.65]
[1754951281760,5.757029,173.77,173.71,0.65]
[1754951281967,32.42464341,173.78,173.71,0.65]
[1754951282844,38.18167241,173.78,173.71,6.40667568]
[1754951283063,32.427029,173.78,173.72,0.65]
[1754951283276,38.18143734,173.78,173.72,0.65]
[1754951283973,26.0,173.79,173.72,0.65]
[1754951284175,0.03,173.78,173.72,0.65]
[1754951287172,0.7,173.78,173.72,0.65]
[1754951288156,5.75473326,173.77,173.72,0.65]
[1754951288478,5.75473326,173.77,173.71,0.06]
[1754951288479,0.67,173.76,173.71,0.06]
[1754951288873,0.67,173.76,173.71,0.71]
[1754951289069,5.75473326,173.77,173.72,0.65]
[1754951289282,0.7,173.78,173.72,0.65]
[1754951289453,0.03,173.78,173.73,0.65]
[1754951289653,0.03,173.78,173.74,0.65]
[1754951290068,0.03,173.78,173.75,0.65]
[1754951290963,0.03,173.78,173.76,0.65]
[1754951291195,0.03,173.78,173.72,47.57632748]
[1754951291379,0.7,173.78,173.73,0.65]
[1754951291985,0.03,173.78,173.74,0.65]
[1754951292182,0.03,173.78,173.75,0.65]
[1754951292496,0.03,173.78,173.75,6.40533953]
[1754951292996,0.03,173.78,173.76,0.65]
[1754951293192,0.03,173.78,173.74,5.75563066]
[1754951293396,0.03,173.78,173.73,0.65]
[1754951293596,0.03,173.78,173.74,0.65]
[1754951293900,0.7,173.78,173.72,0.65]
[1754951294089,26.0,173.77,173.71,0.06]
[1754951294392,6.42506445,173.76,173.71,0.06]
[1754951294780,5.75506445,173.76,173.71,0.06]
[1754951295076,0.67,173.75,173.71,0.06]
[1754951295280,0.67,173.74,173.71,0.06]
[1754951295689,0.67,173.73,173.71,0.06]
[1754951296990,5.75595832,173.74,173.71,0.06]
[1754951297304,6.42595832,173.74,173.71,0.06]
[1754951297495,43.293558,173.77,173.71,0.06]
[1754951297496,6.42513884,173.76,173.71,0.06]
[1754951298006,26.0,173.73,173.71,0.06]
[1754951298371,6.42638959,173.72,173.71,0.06]
[1754951300371,36.42638959,173.72,173.71,0.06]
[1754951301379,8.73286159,173.72,173.71,0.06]
[1754951302085,48.19543088,173.75,173.71,0.06]
[1754951302289,48.19543088,173.75,173.71,0.71]
[1754951302601,2.30594,173.74,173.71,0.71]
[1754951302804,2.30594,173.74,173.71,0.06]
[1754951302974,2.98594,173.74,173.71,0.06]
[1754951304088,26.0,173.75,173.71,0.71]
[1754951304505,43.294555,173.75,173.71,0.71]
[1754951304830,26.0,173.75,173.72,0.65]
[1754951305003,31.75541626,173.75,173.71,0.06]
[1754951305203,32.43541626,173.75,173.71,0.06]
[1754951306594,32.46541626,173.75,173.71,0.06]
[1754951306789,26.71,173.75,173.71,0.71]
[1754951307028,26.03,173.75,173.72,0.65]
[1754951308425,26.71,173.75,173.71,0.06]
[1754951309895,32.46553406,173.75,173.71,0.06]
[1754951310843,31.78553406,173.75,173.71,0.06]
[1754951310994,26.0,173.72,173.71,0.06]
[1754951311430,26.68,173.72,173.71,0.06]
[1754951311627,0.68,173.72,173.71,0.06]
[1754951311926,26.0,173.73,173.71,0.06]
[1754951312129,0.71,173.75,173.71,0.06]
[1754951312310,0.71,173.75,173.71,0.71]
[1754951312311,0.03,173.75,173.71,0.71]
[1754951312511,0.03,173.75,173.72,0.65]
[1754951313027,0.03,173.75,173.73,0.65]
[1754951313734,0.71,173.75,173.71,0.06]
[1754951314402,0.71,173.75,173.71,0.71]
[1754951315436,0.03,173.75,173.71,0.71]
[1754951315627,0.03,173.75,173.72,0.65]
[1754951316241,0.03,173.75,173.73,0.65]
[1754951316548,0.03,173.75,173.71,95.71667174]
[1754951316729,0.03,173.75,173.74,0.65]
[1754951317246,0.03,173.75,173.74,6.40572694]
[1754951317447,0.03,173.75,173.74,48.00572694]
[1754951319942,0.03,173.75,173.74,63.11194251]
[1754951320131,0.03,173.75,173.74,71.05774337]
[1754951320747,0.03,173.75,173.74,63.6875152]
[1754951321140,0.03,173.75,173.74,63.11194251]
[1754951322162,0.03,173.75,173.74,71.05774337]
[1754951322657,0.03,173.75,173.74,68.53315955]
[1754951322859,0.03,173.78,173.74,82.92247692]
[1754951323066,0.03,173.78,173.77,20.52743261]
[1754951323231,0.03,173.79,173.78,5.75440211]
[1754951323432,0.03,173.79,173.78,11.82561915]
[1754951323629,0.03,173.81,173.8,15.10621557]
[1754951323858,0.03,173.81,173.8,47.1028066]
[1754951324026,0.03,173.81,173.8,49.65]
[1754951324222,0.03,173.81,173.8,91.45]
[1754951325345,0.03,173.81,173.8,97.20373993]
[1754951325536,0.71,173.81,173.8,41.78]
[1754951326429,0.03,173.81,173.8,41.78]
[1754951326629,0.03,173.81,173.77,0.65]
[1754951327038,0.03,173.81,173.78,41.78]
[1754951327466,0.03,173.81,173.78,48.18425679]
[1754951328441,0.03,173.81,173.79,0.65]
[1754951328667,0.03,173.81,173.79,42.43]
[1754951329054,0.03,173.81,173.8,0.72]
[1754951330478,0.03,173.81,173.79,47.53375116]
[1754951330654,0.03,173.81,173.79,48.25375116]
[1754951330854,0.03,173.81,173.8,0.72]
[1754951331572,0.03,173.81,173.8,6.47373993]
[1754951332175,0.03,173.81,173.8,29.53096343]
[1754951332370,1e-08,173.82,173.81,15.10621557]
[1754951332576,1e-08,173.82,173.81,24.35256438]
[1754951332765,1e-08,173.82,173.81,16.40155645]
[1754951332963,1e-08,173.82,173.81,24.35256438]
[1754951333473,1e-08,173.82,173.81,30.10597327]
[1754951333852,1e-08,173.82,173.81,71.80597327]
[1754951336073,0.03,173.86,173.84,41.10621557]
[1754951336275,0.03,173.86,173.85,65.29243201]
[1754951336477,0.03,173.86,173.85,58.06142408]
[1754951336683,0.03,173.86,173.85,66.01243201]
[1754951336974,0.03,173.86,173.85,56.76621557]
[1754951337351,0.03,173.86,173.85,65.4372235]
[1754951337774,0.03,173.86,173.85,71.76451714]
[1754951338086,0.03,173.86,173.85,63.2383007]
[1754951339267,0.03,173.86,173.85,63.81350921]
[1754951341362,0.73,173.92,173.86,15.10621557]
[1754951341658,0.73,173.92,173.88,5.7510927]
[1754951341862,0.73,173.92,173.89,56.68621557]
[1754951342689,0.03,173.92,173.89,57.40621557]
[1754951343065,0.03,173.92,173.89,56.68621557]
[1754951343793,0.73,173.92,173.9,5.75043128]
[1754951343965,0.03,173.92,173.91,41.56]
[1754951345499,0.03,173.92,173.91,56.66621557]
[1754951345664,0.03,173.92,173.91,65.91223356]
[1754951345870,0.03,173.92,173.91,71.66233418]
[1754951346168,0.1,173.96,173.91,71.66233418]
[1754951346169,0.1,173.96,173.92,15.10621557]
[1754951346485,0.1,173.96,173.94,15.10621557]
[1754951346695,0.1,173.96,173.95,41.56]
[1754951346887,0.7,173.95,173.91,20.85631619]
[1754951347064,0.7,173.95,173.93,15.10621557]
[1754951347265,0.7,173.95,173.94,41.56]
[1754951348283,0.7,173.95,173.92,20.85588433]
[1754951348465,0.7,173.95,173.93,41.56]
[1754951348664,0.7,173.94,173.93,41.56]
[1754951348864,0.8,173.96,173.93,41.56]
[1754951349097,0.7,173.95,173.93,41.56]
[1754951350102,0.7,173.94,173.93,41.56]
[1754951351601,0.8,173.96,173.93,41.56]
[1754951351797,0.7,173.95,173.93,47.30943369]
[1754951352603,0.1,173.96,173.93,48.02943369]
[1754951352985,0.1,173.96,173.94,15.82621557]
[1754951353186,0.1,173.96,173.95,62.0563287]
[1754951353390,0.1,173.96,173.95,62.7763287]
[1754951353585,0.1,173.96,173.95,68.52510708]
[1754951355489,0.1,173.99,173.96,104.90621557]
[1754951355692,0.1,173.99,173.98,5.7477871]
[1754951357914,0.1,173.99,173.98,6.4677871]
[1754951358885,0.1,173.99,173.98,95.5477871]
[1754951359407,0.1,173.99,173.98,96.2677871]
[1754951359584,0.1,173.99,173.98,95.5477871]
[1754951359907,0.79,173.99,173.98,131.34]
[1754951361688,0.1,173.99,173.98,131.34]
[1754951361888,0.1,173.99,173.98,137.0877871]
[1754951362401,0.1,173.99,173.98,131.34]
[1754951362600,0.79,173.99,173.98,131.34]
[1754951363317,0.79,173.99,173.96,89.8]
[1754951363485,6.53751214,173.99,173.97,41.54]
[1754951363810,0.69,173.98,173.97,41.54]
[1754951364109,6.4377871,173.98,173.97,41.54]
[1754951364815,6.4377871,173.98,173.96,41.54]
[1754951365003,0.69,173.97,173.96,41.54]
[1754951367319,0.1,173.99,173.96,41.54]
[1754951367320,0.79,173.99,173.96,41.54]
[1754951368092,0.1,173.99,173.96,41.54]
[1754951368304,0.1,173.99,173.96,47.28841813]
[1754951368708,0.1,173.99,173.97,0.72]
[1754951368907,0.1,173.99,173.98,56.62621557]
[1754951369114,0.1,173.99,173.98,57.34621557]
[1754951369313,0.1,173.99,173.98,152.89400267]
[1754951370636,0.1,173.99,173.95,5.74877838]
[1754951370827,0.69,173.98,173.91,0.72]
[1754951370998,0.69,173.98,173.92,56.62621557]
[1754951371321,26.69,173.98,173.93,5.74943942]
[1754951371625,0.69,173.97,173.96,0.06]
[1754951371830,0.69,173.97,173.96,41.58]
[1754951372012,26.0,173.98,173.96,41.58]
[1754951372316,26.69,173.98,173.96,41.58]
[1754951372901,0.1,173.99,173.96,41.58]
[1754951373107,26.79,173.99,173.96,41.58]
[1754951373424,0.1,173.99,173.96,42.3]
[1754951373801,0.1,173.99,173.96,48.04843774]
[1754951374329,0.1,173.99,173.96,42.3]
[1754951375003,0.1,173.99,173.96,41.58]
[1754951375217,0.79,173.99,173.96,41.58]
[1754951376625,0.79,173.99,173.96,131.48]
[1754951378919,0.1,173.99,173.96,131.48]
[1754951379129,0.69,173.98,173.97,41.52]
[1754951379322,0.69,173.98,173.96,89.96]